bitfinex/quotes_SOLUSD_20241010
["timestamp","ask_amount","ask_price","bid_price","bid_amount"]
[1728535177964,23.776884,140.22,140.18,8.56003354]
[1728535179477,23.776884,140.22,140.18,7.1335]
[1728535180289,30.908584,140.22,140.18,7.1335]
[1728535183388,7.1323,140.21,140.17,24.969]
[1728535183594,7.1323,140.21,140.17,17.8349]
[1728535196183,7.1327,140.2,140.17,19.26148518]
[1728535196603,7.1327,140.2,140.17,17.8349]
[1728535197314,0.25098,140.21,140.17,19.26150864]
[1728535197490,7.38308,140.21,140.17,19.26150864]
[1728535199814,7.1321,140.21,140.17,24.969]
[1728535200901,23.776884,140.22,140.17,24.969]
[1728535201110,7.44496759,140.26,140.2,7.1326]
[1728535201300,7.1309,140.24,140.19,38.70755182]
[1728535201501,7.1317,140.22,140.19,17.8324]
[1728535202703,7.1311,140.23,140.19,17.8324]
[1728535202898,0.12549,140.24,140.2,7.1323]
[1728535203216,6.1353,140.27,140.21,7.1321]
[1728535203417,20.0,140.28,140.21,7.1321]
[1728535203589,7.1302,140.25,140.2,20.87465182]
[1728535203786,7.1302,140.25,140.2,22.30083]
[1728535204597,7.1302,140.25,140.2,37.75833]
[1728535204995,7.1297,140.26,140.22,7.1315]
[1728535205193,7.1297,140.26,140.23,1.42606136]
[1728535205899,7.1297,140.26,140.22,7.1315]
[1728535214531,7.1297,140.26,140.21,24.9617]
[1728535224345,7.1297,140.26,140.22,1.42605651]
[1728535224536,7.1297,140.26,140.22,7.1315]
[1728535228661,23.776884,140.28,140.23,7.1307]
[1728535228860,30.905884,140.28,140.23,8.55673567]
[1728535229270,30.905884,140.28,140.23,7.1307]
[1728535230643,0.12549,140.27,140.23,17.8269]
[1728535230836,23.776884,140.26,140.23,17.8269]
[1728535240075,23.776884,140.26,140.23,24.9579]
[1728535255978,30.906784,140.26,140.21,7.1319]
[1728535259565,30.906784,140.26,140.21,7.1319]
[1728535263386,23.776884,140.26,140.22,13.74215182]
[1728535263602,23.776884,140.26,140.22,20.87335182]
[1728535263899,23.902374,140.27,140.24,7.1305]
[1728535267576,23.902374,140.27,140.23,7.131]
[1728535267895,31.031474,140.27,140.23,7.131]
[1728535268093,23.776884,140.27,140.23,7.131]
[1728535272706,30.906084,140.27,140.23,7.131]
[1728535279416,7.1301,140.25,140.22,17.8287]
[1728535279784,7.1301,140.25,140.21,7.132]
[1728535280912,7.1306,140.24,140.2,22.59]
[1728535286210,7.1315,140.23,140.19,17.8323]
[1728535290215,23.776884,140.22,140.19,17.8323]
[1728535295434,30.908884,140.22,140.17,22.4766]
[1728535295724,23.776884,140.2,140.17,15.3426]
[1728535295902,0.12549,140.21,140.13,32.9293]
[1728535296104,7.1342,140.17,140.13,40.0653]
[1728535298528,7.1338,140.18,140.13,40.0653]
[1728535298738,23.776884,140.17,140.13,40.0653]
[1728535302028,30.911084,140.17,140.13,40.0653]
[1728535303016,30.911084,140.17,140.13,41.49232758]
[1728535303415,23.776884,140.17,140.13,41.49232758]
[1728535305340,23.776884,140.17,140.13,40.0653]
[1728535307945,23.776884,140.17,140.14,8.56250949]
[1728535308125,7.1327,140.2,140.15,8.56169164]
[1728535308336,7.1327,140.2,140.15,7.1348]
[1728535309436,24.027864,140.19,140.15,7.1348]
[1728535310648,31.160964,140.19,140.15,7.1348]
[1728535315249,31.160964,140.19,140.14,7.1356]
[1728535325677,23.776884,140.19,140.15,1.42678339]
[1728535325887,23.776884,140.19,140.16,7.1345]
[1728535326377,23.776884,140.19,140.17,1.42669348]
[1728535326586,23.776884,140.19,140.16,8.56119308]
[1728535328685,23.776884,140.19,140.15,24.9725]
[1728535329258,30.910084,140.19,140.15,24.9725]
[1728535351938,24.3012,140.23,140.16,1.42672127]
[1728535352243,24.3012,140.23,140.16,8.56132127]
[1728535352244,7.1326,140.2,140.16,8.56132127]
[1728535355443,7.1321,140.21,140.17,8.56061753]
[1728535358447,24.027864,140.24,140.17,1.42661753]
[1728535358645,0.25098,140.24,140.18,13.74215182]
[1728535359030,7.1311,140.23,140.18,20.87565182]
[1728535359239,7.1311,140.23,140.18,7.1335]
[1728535361578,7.1311,140.23,140.19,1.42634893]
[1728535362067,7.1311,140.23,140.18,7.1335]
[1728535365059,7.1317,140.22,140.17,17.8349]
[1728535365267,7.1317,140.22,140.17,24.969]
[1728535368679,7.1326,140.21,140.17,17.8349]
[1728535368875,23.776884,140.2,140.17,17.8349]
[1728535370755,23.776884,140.2,140.17,19.26151405]
[1728535374091,23.776884,140.2,140.17,17.8349]
[1728535374590,23.776884,140.2,140.17,24.969]
[1728535376404,7.1326,140.21,140.17,24.969]
[1728535376586,24.027864,140.25,140.18,8.56011506]
[1728535376773,24.027864,140.25,140.18,22.30226688]
[1728535376978,23.776884,140.22,140.19,1.42641872]
[1728535377710,7.1315,140.23,140.19,1.42641872]
[1728535380308,7.1302,140.25,140.21,7.132]
[1728535381775,23.776884,140.24,140.21,7.132]
[1728535384210,7.1302,140.25,140.21,7.132]
[1728535387799,7.1302,140.25,140.2,7.1326]
[1728535389805,23.776884,140.24,140.2,7.1326]
[1728535394647,7.1302,140.25,140.21,1.42620289]
[1728535395918,7.1297,140.26,140.22,1.426199]
[1728535396126,7.1297,140.26,140.22,15.16835082]
[1728535397448,7.1297,140.26,140.22,22.29985082]
[1728535398144,7.1297,140.26,140.22,7.1315]
[1728535406144,7.37998,140.28,140.23,7.1307]
[1728535406348,7.1292,140.27,140.23,7.1307]
[1728535406528,23.902374,140.26,140.21,31.57215182]
[1728535406735,0.12549,140.25,140.21,17.83]
[1728535406949,23.776884,140.24,140.2,36.89835182]
[1728535407161,7.25659,140.24,140.2,16.0237]
[1728535408032,7.1311,140.23,140.2,16.0237]
[1728535408229,7.1311,140.23,140.19,7.1331]
[1728535413274,23.776884,140.23,140.19,7.1331]
[1728535416054,7.1307,140.24,140.19,7.1331]
[1728535416873,7.1307,140.24,140.19,20.87525182]
[1728535417172,23.776884,140.24,140.2,1.42627096]
[1728535417348,7.25569,140.25,140.21,7.1321]
[1728535417555,0.12549,140.25,140.22,1.42615351]
[1728535418054,31.032074,140.26,140.22,1.42615351]
[1728535419655,31.032074,140.26,140.21,7.1321]
[1728535421964,7.1302,140.25,140.21,7.1321]
[1728535435292,7.1302,140.25,140.21,20.87425182]
[1728535436016,7.1302,140.25,140.21,7.1321]
[1728535441194,7.1302,140.25,140.2,34.267]
[1728535441403,7.1302,140.25,140.2,41.3994]
[1728535443393,7.1306,140.24,140.2,41.3994]
[1728535454280,7.1306,140.24,140.2,42.82563804]
[1728535460908,7.1306,140.24,140.2,41.3994]
[1728535461285,0.25098,140.26,140.2,34.267]
[1728535461605,7.1302,140.25,140.21,8.55816987]
[1728535468517,18.07538,140.26,140.17,17.8346]
[1728535468684,7.1325,140.21,140.17,17.8346]
[1728535469694,7.1325,140.21,140.17,24.9686]
[1728535472904,7.1317,140.22,140.17,38.71075182]
[1728535473103,7.1312,140.23,140.18,8.55963259]
[1728535473430,23.776884,140.22,140.18,15.16858441]
[1728535474400,23.776884,140.22,140.19,7.1331]
[1728535475623,23.776884,140.22,140.18,15.16858441]
[1728535475811,23.776884,140.22,140.18,22.30208441]
[1728535476717,23.776884,140.22,140.18,7.1335]
[1728535478024,23.776884,140.22,140.19,1.42643076]
[1728535479016,23.776884,140.22,140.18,7.1335]
[1728535481898,7.1312,140.23,140.19,1.42643279]
[1728535482512,7.1312,140.23,140.18,7.1335]
[1728535491107,0.25098,140.25,140.19,8.55935123]
[1728535491303,7.1307,140.24,140.19,7.133]
[1728535491538,7.1307,140.24,140.2,1.42628199]
[1728535491711,7.1307,140.24,140.19,7.133]
[1728535491912,7.1307,140.24,140.2,1.42628558]
[1728535492417,7.1307,140.24,140.19,7.133]
[1728535492712,7.1307,140.24,140.2,1.42630279]
[1728535492932,7.1307,140.24,140.19,7.133]
[1728535493121,7.1307,140.24,140.2,1.42628779]
[1728535493309,23.902374,140.25,140.19,7.133]
[1728535493514,7.1311,140.23,140.2,1.42629082]
[1728535493927,7.1311,140.23,140.19,7.133]
[1728535504646,7.1311,140.23,140.19,7.133]
[1728535508638,7.1311,140.23,140.18,7.1336]
[1728535525344,7.1317,140.22,140.17,24.9686]
[1728535525546,7.1325,140.21,140.17,17.8346]
[1728535525939,7.1327,140.2,140.17,17.8346]
[1728535529857,7.1327,140.2,140.16,15.8452]
[1728535530168,7.1327,140.2,140.15,8.20556077]
[1728535530458,17.827,140.24,140.15,8.20556077]
[1728535530459,7.1332,140.19,140.15,7.1351]
[1728535536557,38.197364,140.23,140.15,13.74215182]
[1728535536764,38.197364,140.23,140.16,7.1346]
[1728535536765,23.776884,140.2,140.16,7.1346]
[1728535537064,23.776884,140.2,140.16,8.5612475]
[1728535540167,23.776884,140.2,140.15,7.135]
[1728535540168,30.909884,140.2,140.15,7.135]
[1728535541566,30.909884,140.2,140.16,7.1346]
[1728535541761,23.776884,140.2,140.17,7.1341]
[1728535541973,7.132,140.22,140.18,22.30229457]
[1728535542351,7.1308,140.24,140.19,7.1329]
[1728535542967,7.1308,140.24,140.2,1.42642491]
[1728535543467,23.776884,140.23,140.19,7.1329]
[1728535545963,23.776884,140.23,140.19,8.55928359]
[1728535551282,23.776884,140.23,140.19,7.1329]
[1728535552653,30.907984,140.23,140.19,7.1329]
[1728535559759,23.776884,140.23,140.18,24.9672]
[1728535559966,7.1322,140.21,140.17,16.206]
[1728535561996,7.1322,140.21,140.17,23.3401]
[1728535563093,23.776884,140.2,140.17,16.206]
[1728535563268,30.909684,140.2,140.16,7.1345]
[1728535563472,7.1332,140.19,140.15,17.8374]
[1728535565669,7.1332,140.19,140.15,24.9725]
[1728535568390,7.1343,140.17,140.13,23.171]
[1728535568973,0.25098,140.19,140.13,23.171]
[1728535569284,23.776884,140.17,140.13,23.171]
[1728535573397,23.776884,140.17,140.13,38.340122]
[1728535573969,0.25098,140.19,140.14,15.16912214]
[1728535574192,23.776884,140.19,140.15,13.74215182]
[1728535574369,20.0,140.24,140.16,15.16889191]
[1728535574704,14.1695,140.25,140.18,13.74215182]
[1728535574994,7.1307,140.24,140.19,22.30141005]
[1728535575492,7.1307,140.24,140.2,13.74215182]
[1728535575696,7.1307,140.24,140.2,15.16849681]
[1728535575901,7.1307,140.24,140.2,13.74215182]
[1728535576211,23.776884,140.23,140.2,15.1684979]
[1728535577692,14.1695,140.28,140.21,15.16850732]
[1728535577901,35.71087257,140.32,140.24,13.74215182]
[1728535578075,7.1281,140.29,140.25,1.42598702]
[1728535578485,7.43583671,140.33,140.26,13.74215182]
[1728535578670,7.43583671,140.33,140.27,13.74215182]
[1728535578671,7.127,140.32,140.27,13.74215182]
[1728535578871,7.127,140.32,140.26,20.87165182]
[1728535580872,24.027864,140.31,140.27,1.42561017]
[1728535582111,31.154864,140.31,140.26,20.87165182]
[1728535582273,31.154864,140.31,140.27,1.42560812]
[1728535582479,31.154864,140.31,140.26,20.87165182]
[1728535582897,31.154864,140.31,140.27,1.42560995]
[1728535583478,31.154864,140.31,140.26,20.87165182]
[1728535584306,31.154864,140.31,140.27,1.42560866]
[1728535584483,31.154864,140.31,140.26,20.87165182]
[1728535585078,31.154864,140.31,140.27,1.42560943]
[1728535586814,31.154864,140.31,140.26,20.87165182]
[1728535586987,31.154864,140.31,140.27,1.42560985]
[1728535588509,31.154864,140.31,140.26,20.87165182]
[1728535589006,31.154864,140.31,140.27,1.42561039]
[1728535589711,31.154864,140.31,140.26,20.87165182]
[1728535590205,31.154864,140.31,140.27,1.42561047]
[1728535591105,30.903884,140.31,140.27,1.42561047]
[1728535591297,23.776884,140.31,140.27,8.55451047]
[1728535592588,23.776884,140.31,140.27,7.1289]
[1728535593206,23.776884,140.31,140.28,1.42553661]
[1728535593710,23.776884,140.31,140.27,7.1289]
[1728535596307,30.903984,140.31,140.27,7.1289]
[1728535597189,6.1143,140.37,140.29,13.74215182]
[1728535597392,14.1695,140.38,140.3,15.16740776]
[1728535597808,7.125,140.35,140.3,22.29490776]
[1728535599406,7.1246,140.36,140.31,20.86895182]
[1728535599706,7.1246,140.36,140.32,1.42505905]
[1728535600112,7.1246,140.36,140.32,15.16721087]
[1728535600290,7.1246,140.36,140.32,22.29371087]
[1728535600493,7.1266,140.32,140.29,16.1167]
[1728535600708,17.8108,140.37,140.29,16.1167]
[1728535600891,7.1256,140.34,140.29,23.2446]
[1728535601291,7.125,140.35,140.3,8.55274107]
[1728535601492,7.125,140.35,140.3,7.1275]
[1728535601997,7.125,140.35,140.31,1.42514532]
[1728535603118,7.125,140.35,140.3,7.1275]
[1728535606396,24.027864,140.37,140.29,41.0641]
[1728535606698,7.1261,140.33,140.29,41.0641]
[1728535608814,7.1257,140.34,140.29,33.9361]
[1728535608998,7.1257,140.34,140.3,7.1275]
[1728535612100,7.1261,140.33,140.29,41.064]
[1728535612623,23.776884,140.32,140.29,16.1167]
[1728535612794,7.1271,140.31,140.27,7.129]
[1728535621323,7.1271,140.31,140.26,24.9526]
[1728535622724,7.1276,140.3,140.26,24.9526]
[1728535625633,7.1272,140.31,140.26,24.9526]
[1728535630119,7.1279,140.3,140.26,17.8232]
[1728535631036,7.1279,140.3,140.26,24.9528]
[1728535631541,7.1279,140.3,140.26,17.8232]
[1728535634511,7.1279,140.3,140.26,24.9526]
[1728535634837,56.011764,140.34,140.26,17.8232]
[1728535635017,7.1281,140.29,140.25,29.9064]
[1728535635337,7.1281,140.29,140.25,23.5977]
[1728535639650,7.129,140.28,140.23,24.9579]
[1728535663069,7.25369,140.29,140.25,7.13]
[1728535668175,7.25369,140.29,140.23,17.8272]
[1728535668176,7.25369,140.29,140.24,7.1304]
[1728535670174,7.25369,140.29,140.25,1.42582624]
[1728535671046,7.25369,140.29,140.24,7.1304]
[1728535676677,23.776884,140.28,140.24,7.1304]
[1728535676864,30.905484,140.28,140.24,7.1304]
[1728535678479,17.8169,140.32,140.25,1.42586469]
[1728535678659,30.904984,140.29,140.25,26.38066469]
[1728535680778,30.904984,140.29,140.25,17.8249]
[1728535687404,23.776884,140.29,140.25,17.8249]
[1728535687595,23.776884,140.29,140.23,7.1311]
[1728535687794,7.1286,140.28,140.23,7.1311]
[1728535688299,7.1286,140.28,140.24,8.55627038]
[1728535688471,30.904984,140.29,140.24,8.55627038]
[1728535689688,30.904984,140.29,140.24,1.42587038]
[1728535689879,23.776884,140.29,140.25,7.1297]
[1728535690086,23.776884,140.29,140.26,1.42569511]
[1728535691171,23.776884,140.29,140.25,7.1297]
[1728535691776,23.776884,140.29,140.26,1.42574252]
[1728535692297,30.904984,140.29,140.26,1.42574252]
[1728535695890,30.904984,140.29,140.25,7.1297]
[1728535698596,30.904984,140.29,140.26,1.4257435]
[1728535698800,30.904984,140.29,140.25,7.1297]
[1728535699306,30.904984,140.29,140.25,8.55544103]
[1728535701177,30.904984,140.29,140.25,7.1297]
[1728535701892,30.904984,140.29,140.25,8.55544422]
[1728535708092,30.904984,140.29,140.25,7.1297]
[1728535709105,30.904984,140.29,140.25,8.55544628]
[1728535709701,30.904984,140.29,140.25,7.1297]
[1728535714239,17.8157,140.33,140.26,8.55524184]
[1728535714401,17.8157,140.33,140.24,31.56775182]
[1728535714603,7.1281,140.29,140.25,7.13]
[1728535736454,7.1267,140.32,140.26,17.8231]
[1728535736744,7.1262,140.33,140.28,7.1281]
[1728535736943,7.1266,140.32,140.28,7.1281]
[1728535740144,23.776884,140.32,140.28,7.1281]
[1728535740324,23.776884,140.32,140.29,7.128]
[1728535742021,23.776884,140.32,140.28,7.1285]
[1728535742552,27.00263012,140.37,140.29,15.16759897]
[1728535742847,7.1257,140.34,140.3,7.1271]
[1728535747252,7.1264,140.33,140.29,16.2431]
[1728535749863,7.1255,140.34,140.3,1.42534497]
[1728535750150,7.1255,140.34,140.3,1.42529202]
[1728535750460,7.1255,140.34,140.3,7.1275]
[1728535750630,24.027864,140.36,140.3,7.1275]
[1728535750956,7.125,140.35,140.3,7.1275]
[1728535755150,7.125,140.35,140.31,7.127]
[1728535758571,7.1241,140.37,140.33,13.74215182]
[1728535759564,7.1241,140.37,140.33,20.86805182]
[1728535760155,7.1241,140.37,140.33,7.1259]
[1728535761666,7.1241,140.37,140.33,7.1259]
[1728535762469,7.1241,140.37,140.34,1.42490562]
[1728535762768,0.8232306,140.43,140.36,13.74215182]
[1728535762945,0.8232306,140.43,140.36,31.55225182]
[1728535762946,7.1225,140.4,140.36,31.55225182]
[1728535763270,18.6264306,140.43,140.33,33.2597]
[1728535763449,7.1236,140.38,140.34,1.42464027]
[1728535764260,7.1236,140.38,140.34,8.55004027]
[1728535764954,7.1236,140.38,140.33,54.12785182]
[1728535765156,7.1236,140.38,140.34,13.74215182]
[1728535765450,7.1236,140.38,140.35,1.42481224]
[1728535766303,7.1231,140.39,140.35,1.42481224]
[1728535766849,7.1242,140.37,140.33,33.2597]
[1728535767056,7.1235,140.39,140.34,8.54997603]
[1728535767274,7.1235,140.39,140.34,22.29212785]
[1728535769062,7.1235,140.39,140.35,7.1249]
[1728535769371,7.1235,140.39,140.36,1.42469788]
[1728535769567,18.6264306,140.43,140.35,13.74215182]
[1728535769774,7.1225,140.4,140.35,13.74215182]
[1728535769953,7.1225,140.4,140.35,20.86705182]
[1728535770567,7.1225,140.4,140.36,1.42468017]
[1728535772177,7.1225,140.4,140.35,20.86705182]
[1728535773799,7.122,140.41,140.36,7.1241]
[1728535775156,7.122,140.41,140.37,1.4245878]
[1728535775883,7.122,140.41,140.36,7.1241]
[1728535776458,24.027864,140.42,140.35,17.8116]
[1728535776659,24.027864,140.42,140.34,13.4448]
[1728535776863,7.1231,140.39,140.34,13.4448]
[1728535777083,7.1231,140.39,140.35,1.42471115]
[1728535779482,7.1231,140.39,140.34,27.18695182]
[1728535780259,7.1231,140.39,140.34,13.4448]
[1728535781571,7.1231,140.39,140.34,27.18695182]
[1728535781961,7.1231,140.39,140.35,1.42471112]
[1728535782861,7.1231,140.39,140.35,22.29176294]
[1728535783578,7.1231,140.39,140.35,20.86705182]
[1728535786786,7.1231,140.39,140.35,22.29168333]
[1728535787470,7.1231,140.39,140.35,20.86705182]
[1728535790291,7.1231,140.39,140.36,1.42463239]
[1728535790467,7.1226,140.4,140.36,1.42463239]
[1728535792875,7.1226,140.4,140.37,1.42463117]
[1728535796009,7.1226,140.4,140.36,7.1243]
[1728535796206,7.123,140.39,140.35,7.125]
[1728535796500,7.123,140.39,140.34,31.2584]
[1728535797196,24.027864,140.42,140.35,7.1247]
[1728535797406,7.1226,140.4,140.35,7.1247]
[1728535799901,24.027864,140.42,140.35,7.1247]
[1728535800123,7.1246,140.36,140.33,15.4451]
[1728535800987,7.1241,140.37,140.33,15.4451]
[1728535801588,24.027864,140.4,140.33,15.4451]
[1728535801790,14.1695,140.39,140.29,16.3098]
[1728535801998,7.1269,140.32,140.28,17.8213]
[1728535802194,7.127,140.31,140.28,17.8213]
[1728535802409,7.1276,140.3,140.26,22.7562]
[1728535802586,7.1276,140.3,140.26,16.3098]
[1728535804031,14.1695,140.33,140.23,13.5774]
[1728535804205,24.027864,140.32,140.23,13.5774]
[1728535804396,7.1286,140.28,140.23,13.5774]
[1728535804715,7.1281,140.29,140.24,7.1305]
[1728535805084,23.776884,140.29,140.25,8.55575071]
[1728535806313,23.776884,140.29,140.26,1.42575083]
[1728535806810,23.776884,140.29,140.25,7.13]
[1728535808807,0.25098,140.32,140.26,1.42575163]
[1728535808994,7.127,140.31,140.26,8.55525163]
[1728535811090,7.127,140.31,140.26,7.1295]
[1728535813611,7.1282,140.29,140.24,24.9558]
[1728535813833,7.1282,140.29,140.25,7.13]
[1728535815806,7.1277,140.3,140.25,7.13]
[1728535816127,7.1277,140.3,140.26,1.42570732]
[1728535818227,7.1277,140.3,140.25,7.13]
[1728535818932,7.1282,140.29,140.25,7.13]
[1728535820810,24.027864,140.32,140.24,17.8257]
[1728535821136,7.1291,140.27,140.24,17.8257]
[1728535821528,7.1286,140.28,140.24,17.8257]
[1728535822227,7.1291,140.27,140.24,17.8257]
[1728535823154,7.1291,140.27,140.23,7.131]
[1728535829237,0.12549,140.29,140.23,7.131]
[1728535829544,7.1287,140.28,140.23,7.131]
[1728535835255,7.1287,140.28,140.23,13.74215182]
[1728535835460,7.1287,140.28,140.24,7.1305]
[1728535838738,7.1287,140.28,140.23,24.958]
[1728535841043,7.1287,140.28,140.24,7.1304]
[1728535847167,7.1287,140.28,140.23,24.958]
[1728535848651,7.1287,140.28,140.24,7.1304]
[1728535852549,7.1287,140.28,140.24,8.55624432]
[1728535852755,23.776884,140.29,140.25,7.13]
[1728535853671,7.128,140.3,140.26,1.42574856]
[1728535854043,7.128,140.3,140.26,7.1296]
[1728535854259,7.128,140.3,140.26,8.55528347]
[1728535854667,30.905084,140.29,140.25,7.1299]
[1728535854858,7.1289,140.28,140.23,31.3615]
[1728535855069,7.1289,140.28,140.23,24.2305]
[1728535855248,23.776884,140.29,140.24,7.1305]
[1728535855449,30.905084,140.29,140.24,7.1305]
[1728535858475,7.1286,140.28,140.24,7.1305]
[1728535860480,23.902374,140.29,140.23,17.827]
[1728535860777,7.1296,140.26,140.23,17.827]
[1728535861162,7.1296,140.26,140.22,15.742]
[1728535862279,24.027864,140.28,140.2,18.90130588]
[1728535862474,7.1307,140.24,140.2,17.8312]
[1728535863960,30.908184,140.23,140.19,7.133]
[1728535864162,7.1313,140.23,140.19,7.133]
[1728535865563,7.1313,140.23,140.18,22.6669]
[1728535865879,7.1312,140.23,140.18,22.6668]
[1728535867761,0.12549,140.26,140.18,22.6668]
[1728535867762,0.12549,140.26,140.19,20.87525182]
[1728535867969,7.1307,140.24,140.19,20.87525182]
[1728535868485,23.776884,140.23,140.2,1.42635286]
[1728535868779,23.776884,140.23,140.19,20.87525182]
[1728535869170,6.3205,140.28,140.19,20.87525182]
[1728535869171,6.3205,140.28,140.2,13.74215182]
[1728535869485,7.1297,140.26,140.22,7.1315]
[1728535869982,6.3205,140.28,140.21,13.74215182]
[1728535869983,6.3205,140.28,140.21,20.87385182]
[1728535870276,6.3205,140.28,140.22,24.9595]
[1728535870479,0.12549,140.27,140.22,24.9595]
[1728535870682,24.027864,140.27,140.22,24.9595]
[1728535871465,23.776884,140.25,140.22,24.9595]
[1728535871887,23.776884,140.25,140.22,17.828]
[1728535876469,30.907084,140.25,140.22,17.828]
[1728535876782,0.25098,140.24,140.18,15.5333]
[1728535876959,0.25098,140.24,140.17,7.1337]
[1728535877161,7.1317,140.22,140.17,7.1337]
[1728535877378,7.1317,140.22,140.18,8.56006578]
[1728535878988,7.1317,140.22,140.18,7.1336]
[1728535879284,7.1317,140.22,140.17,31.57695182]
[1728535879458,7.1317,140.22,140.17,24.9688]
[1728535879665,7.1328,140.2,140.15,42.50475182]
[1728535880474,7.1328,140.2,140.16,7.1344]
[1728535880781,7.1322,140.21,140.16,7.1344]
[1728535881683,7.1327,140.2,140.15,28.7629]
[1728535881885,7.1327,140.2,140.15,28.7628]
[1728535882978,7.1327,140.2,140.15,42.50495182]
[1728535883181,30.910184,140.19,140.14,24.9742]
[1728535885404,30.910184,140.19,140.14,38.71635182]
[1728535885587,30.910184,140.19,140.15,1.42678875]
[1728535886601,30.910184,140.19,140.14,38.71635182]
[1728535887288,30.910184,140.19,140.15,1.42679013]
[1728535888197,30.910184,140.19,140.14,24.9742]
[1728535890477,7.1337,140.18,140.14,24.9742]
[1728535901192,30.910184,140.19,140.15,7.1348]
[1728535902096,30.910184,140.19,140.14,17.8386]
[1728535902288,30.910184,140.19,140.14,24.9741]
[1728535906487,30.910184,140.19,140.15,1.42685411]
[1728535908383,30.910184,140.19,140.14,24.9741]
[1728535914104,24.027864,140.22,140.15,1.42679201]
[1728535914279,7.1322,140.21,140.17,7.1341]
[1728535915001,7.1322,140.21,140.17,8.56072888]
[1728535915187,7.1322,140.21,140.16,7.1345]
[1728535915583,0.25098,140.22,140.16,7.1345]
[1728535915807,0.25098,140.22,140.14,17.8386]
[1728535915808,7.1327,140.2,140.14,17.8386]
[1728535916089,7.1327,140.2,140.15,7.135]
[1728535918011,7.1337,140.18,140.14,24.9742]
[1728535926995,23.776884,140.17,140.14,17.8386]
[1728535927617,30.911084,140.17,140.14,17.8386]
[1728535928527,23.776884,140.17,140.14,17.8386]
[1728535928728,23.776884,140.17,140.14,19.26555115]
[1728535929122,7.1338,140.18,140.14,19.26555115]
[1728535929313,7.1338,140.18,140.14,26.40105115]
[1728535931211,7.1338,140.18,140.14,24.9741]
[1728535937740,30.911484,140.17,140.13,15.084]
[1728535939344,30.911484,140.17,140.13,22.2201]
[1728535943245,30.911484,140.17,140.13,15.084]
[1728535945330,23.776884,140.17,140.14,7.1356]
[1728535945547,27.78972615,140.24,140.14,13.74215182]
[1728535945760,20.0,140.23,140.16,7.1346]
[1728535945926,7.1326,140.21,140.16,7.1346]
[1728535946457,7.1327,140.2,140.16,7.1346]
[1728535947844,0.12549,140.21,140.16,7.1346]
[1728535948044,23.902374,140.2,140.16,8.56132247]
[1728535948227,23.902374,140.2,140.16,7.1346]
[1728535948427,23.902374,140.2,140.16,8.56131268]
[1728535948643,7.1317,140.22,140.16,13.74215182]
[1728535948843,12.84901932,140.26,140.18,7.1336]
[1728535949042,8.7782677,140.27,140.18,7.1336]
[1728535950345,7.1312,140.23,140.18,7.1336]
[1728535950553,23.776884,140.22,140.18,7.1336]
[1728535954235,30.908484,140.22,140.18,7.1336]
[1728535956754,30.908484,140.22,140.17,24.9687]
[1728535980966,7.1335,140.19,140.14,24.9743]
[1728535981266,7.1337,140.18,140.14,24.9743]
[1728535982358,23.776884,140.18,140.14,24.9743]
[1728535986479,30.910584,140.18,140.14,24.9743]
[1728535987776,23.776884,140.18,140.14,24.9743]
[1728535990176,30.910584,140.18,140.14,24.9743]
[1728536001168,23.776884,140.18,140.15,1.42694722]
[1728536002184,23.776884,140.18,140.15,8.56194722]
[1728536003473,7.1328,140.2,140.16,8.56135928]
[1728536003681,23.776884,140.19,140.16,7.1345]
[1728536007888,0.12549,140.21,140.16,7.1345]
[1728536008083,30.909484,140.2,140.16,7.1345]
[1728536013201,7.1332,140.19,140.15,7.135]